bitfinex/quotes_ETHUSD_20250802
["timestamp","ask_amount","ask_price","bid_price","bid_amount"]
[1754150782174,0.4893,3470.5,3470.2,0.002]
[1754150782479,0.963,3470.5,3470.2,0.002]
[1754150782628,0.99901786,3470.5,3470.2,0.002]
[1754150782831,0.963,3470.4,3470.2,0.002]
[1754150783230,0.963,3470.3,3470.2,0.002]
[1754150784079,1.513,3470.3,3470.2,0.002]
[1754150784231,1.6643,3470.3,3470.2,0.002]
[1754150785056,1.1143,3470.3,3470.2,0.002]
[1754150785457,0.963,3470.3,3470.2,0.002]
[1754150785845,0.963,3470.6,3470.2,0.002]
[1754150786398,0.963,3470.5,3470.2,0.002]
[1754150786729,0.963,3470.4,3470.2,0.002]
[1754150787152,0.4893,3471.3,3470.2,0.002]
[1754150787371,1.2717515,3471.3,3470.3,0.4584]
[1754150787570,0.963,3471.3,3470.3,0.886]
[1754150787737,0.963,3471.3,3470.4,0.4584]
[1754150788254,0.001,3471.4,3470.5,0.4276]
[1754150788452,0.001,3471.4,3470.5,0.886]
[1754150788764,0.963,3471.3,3470.5,0.4584]
[1754150788974,0.9990106,3471.2,3470.2,0.002]
[1754150789157,0.55,3471.1,3470.2,0.002]
[1754150789357,0.55,3470.9,3470.2,0.002]
[1754150789666,0.55,3470.7,3470.2,0.002]
[1754150789836,0.55,3470.5,3470.2,0.002]
[1754150790036,0.55,3470.3,3470.2,0.002]
[1754150790458,1.513,3470.3,3470.2,0.002]
[1754150791244,0.4893,3470.6,3470.2,0.002]
[1754150791674,0.4893,3470.5,3470.2,0.002]
[1754150791874,0.963,3470.8,3470.2,0.002]
[1754150792180,3.963,3470.8,3470.2,0.4604]
[1754150792777,3.963,3470.8,3470.2,0.002]
[1754150792982,0.963,3470.7,3470.2,0.002]
[1754150793177,0.59011829,3470.6,3470.2,0.002]
[1754150793365,0.55410147,3470.6,3470.2,0.002]
[1754150793567,1.51710147,3470.6,3470.2,0.002]
[1754150793782,0.03601786,3470.5,3470.2,0.002]
[1754150794087,0.99901786,3470.5,3470.2,0.002]
[1754150794285,1.45432979,3470.5,3470.2,0.002]
[1754150794482,0.963,3470.4,3470.2,0.002]
[1754150794850,0.963,3470.3,3470.2,0.002]
[1754150795783,1.04340147,3470.6,3470.2,0.002]
[1754150795985,0.963,3470.3,3470.2,0.002]
[1754150796280,1.11471015,3470.3,3470.2,0.002]
[1754150796888,1.70073009,3470.3,3470.2,0.002]
[1754150797588,1.84123807,3470.3,3470.2,0.002]
[1754150798255,34.84123807,3470.3,3470.2,0.002]
[1754150798463,34.80521813,3470.3,3470.2,0.002]
[1754150799051,39.34621813,3470.3,3470.2,0.002]
[1754150799885,34.80521813,3470.3,3470.2,0.002]
[1754150800086,9.34621813,3470.3,3470.2,0.002]
[1754150800285,39.34621813,3470.3,3470.2,0.002]
[1754150800592,9.25561813,3470.3,3470.2,0.002]
[1754150800751,4.57511015,3470.3,3470.2,0.002]
[1754150801065,5.65471015,3470.3,3470.2,0.002]
[1754150801268,8.65471015,3470.3,3470.2,0.002]
[1754150801900,9.20471015,3470.3,3470.2,0.002]
[1754150802784,4.11471015,3470.3,3470.2,0.002]
[1754150802996,8.65471015,3470.3,3470.2,0.002]
[1754150803183,9.20471015,3470.3,3470.2,0.002]
[1754150803353,4.66471015,3470.3,3470.2,0.002]
[1754150803692,5.24171015,3470.3,3470.2,0.002]
[1754150804791,6.20471015,3470.3,3470.2,0.002]
[1754150806571,9.20471015,3470.3,3470.2,0.002]
[1754150808359,9.20471015,3470.3,3469.8,0.002]
[1754150808360,33.55,3470.2,3469.8,0.002]
[1754150808556,33.55,3470.2,3467.3,0.002]
[1754150808557,3.55,3469.6,3467.3,0.002]
[1754150808794,3.55,3469.0,3467.5,0.4584]
[1754150808996,33.55,3468.8,3467.4,0.4276]
[1754150809300,33.55,3468.8,3467.6,0.4584]
[1754150809497,33.55,3468.8,3467.3,0.002]
[1754150809498,34.513,3468.8,3467.3,0.002]
[1754150809794,34.513,3468.8,3467.3,0.4296]
[1754150809795,36.53548418,3468.8,3467.3,0.4296]
[1754150809996,36.53548418,3468.8,3467.4,0.4584]
[1754150810294,6.53548418,3468.8,3467.7,0.4584]
[1754150810503,5.57248418,3468.8,3467.3,0.002]
[1754150810706,5.57248418,3468.8,3468.2,0.4584]
[1754150810888,10.11048418,3468.8,3468.3,0.4584]
[1754150811204,5.57248418,3468.8,3468.7,0.4604]
[1754150811376,3.55,3468.8,3468.7,0.4604]
[1754150811719,0.4893,3469.5,3468.7,0.4604]
[1754150811917,4.539,3469.4,3468.7,0.8981]
[1754150812061,0.55,3469.2,3468.7,0.8981]
[1754150812257,3.55,3469.0,3468.7,0.002]
[1754150812508,0.55,3468.9,3468.7,0.002]
[1754150812718,7.57403551,3468.8,3468.7,0.002]
[1754150812927,8.4232,3468.8,3468.7,0.002]
[1754150813585,7.538,3468.8,3468.7,0.4918]
[1754150814419,7.538,3468.8,3468.7,0.002]
[1754150814781,8.2918,3468.8,3468.7,0.002]
[1754150815511,7.538,3468.8,3468.7,0.002]
[1754150815726,4.538,3468.8,3468.7,0.9295]
[1754150816222,0.55,3469.7,3468.7,0.9295]
[1754150816527,0.55,3469.5,3468.8,0.9275]
[1754150816698,0.55,3469.3,3468.9,0.4898]
[1754150816901,3.0,3469.1,3469.0,0.4377]
[1754150817280,4.538,3469.2,3469.0,0.9275]
[1754150817806,4.538,3469.2,3469.1,0.9275]
[1754150819330,0.55,3469.9,3469.1,0.9275]
[1754150819533,4.538,3469.8,3469.2,0.4898]
[1754150819830,4.538,3469.8,3468.7,0.002]
[1754150819831,4.4583,3469.7,3468.7,0.002]
[1754150820012,0.0360272,3469.6,3468.8,0.4898]
[1754150820196,4.537,3469.5,3468.8,0.4898]
[1754150820401,0.4538,3469.7,3469.0,0.1]
[1754150820597,4.537,3469.4,3469.0,0.5898]
[1754150820835,4.537,3469.3,3469.1,0.4898]
[1754150820990,4.537,3469.3,3469.2,0.4898]
[1754150822593,4.537,3469.3,3469.2,0.9275]
[1754150822886,0.38252106,3470.0,3469.2,0.9275]
[1754150822887,0.55,3469.9,3469.2,0.9275]
[1754150823116,0.38252106,3470.0,3469.2,0.4377]
[1754150823117,3.0,3469.7,3469.2,0.4377]
[1754150823317,0.55,3470.2,3469.3,0.9275]
[1754150823494,0.55,3470.0,3469.4,0.4898]
[1754150823801,3.55,3470.0,3469.5,0.4377]
[1754150823997,3.0,3470.0,3469.6,0.9275]
[1754150824199,3.0,3470.0,3469.0,0.1]
[1754150824390,3.0,3470.0,3469.7,0.9275]
[1754150824721,3.0,3470.0,3469.8,0.4898]
[1754150824925,4.536,3469.9,3469.7,0.4377]
[1754150825221,0.15171015,3470.3,3469.8,0.4898]
[1754150825526,0.15171015,3470.3,3469.9,0.9275]
[1754150825725,6.933,3470.6,3470.0,0.9275]
[1754150825898,4.535,3470.5,3470.0,0.4898]
[1754150826100,0.55,3470.3,3469.4,0.4898]
[1754150826301,0.55,3470.1,3469.4,0.4898]
[1754150826501,5.1366221,3470.0,3469.4,0.4898]
[1754150826810,5.1366221,3470.0,3469.6,0.002]
[1754150826988,5.5673221,3470.0,3469.6,0.002]
[1754150827189,5.1366221,3470.0,3469.6,0.002]
[1754150827384,4.6821221,3470.0,3469.7,0.4898]
[1754150827624,4.6821221,3470.0,3469.6,0.002]
[1754150827829,0.52321221,3469.9,3469.6,0.002]
[1754150828204,4.6821221,3470.0,3469.6,0.4918]
[1754150828827,4.435,3470.0,3469.6,0.4918]
[1754150829520,4.8895,3470.0,3469.6,0.002]
[1754150829706,0.8852,3469.9,3469.6,0.002]
[1754150830104,4.435,3470.0,3469.6,0.002]
[1754150830105,0.4545,3469.8,3469.6,0.002]
[1754150830305,4.534,3469.7,3469.6,0.002]
[1754150832615,4.534,3469.7,3469.6,0.4918]
[1754150833118,4.533,3469.7,3469.6,0.9295]
[1754150834200,4.533,3469.7,3469.6,0.002]
[1754150834427,8.8715,3469.7,3469.6,0.002]
[1754150837133,9.4215,3469.7,3469.6,0.002]
[1754150837900,39.4215,3469.7,3469.6,0.002]
[1754150838729,0.55,3469.4,3468.7,0.002]
[1754150838897,30.0,3468.9,3468.7,0.002]
[1754150839099,40.98628258,3468.8,3468.7,0.002]
[1754150839421,41.83544707,3468.8,3468.7,0.002]
[1754150844351,11.83544707,3468.8,3468.7,0.002]
[1754150844502,42.30004707,3468.8,3468.7,0.002]
[1754150846643,0.55,3468.6,3468.3,0.002]
[1754150846811,12.30004707,3468.8,3468.3,0.002]
[1754150846812,48.46546224,3468.5,3468.3,0.002]
[1754150847145,49.35352361,3468.5,3468.3,0.002]
[1754150848712,49.46918061,3468.5,3468.3,0.002]
[1754150850112,72.67118061,3468.5,3468.3,0.002]
[1754150850336,36.593,3468.4,3468.3,0.002]
[1754150850541,37.9704,3468.4,3468.3,0.002]
[1754150850741,42.5014,3468.4,3468.3,0.002]
[1754150850985,49.6514,3468.4,3467.3,0.002]
[1754150851185,0.55,3467.4,3467.3,0.002]
[1754150851341,40.98529713,3467.4,3467.3,0.002]
[1754150851534,40.94924707,3467.4,3467.3,0.002]
[1754150851961,41.40524707,3467.4,3467.3,0.002]
[1754150852569,41.87334707,3467.4,3467.3,0.002]
[1754150852743,51.85234707,3467.4,3466.9,0.002]
[1754150853075,0.55,3466.7,3466.5,0.002]
[1754150853241,41.16005734,3466.7,3465.4,0.4626]
[1754150853434,3.55,3465.7,3464.7,0.4626]
[1754150853633,0.55,3465.3,3463.1,0.144]
[1754150853852,38.081,3465.2,3464.1,0.4626]
[1754150854032,39.22580173,3465.2,3464.1,0.4626]
[1754150855136,39.22580173,3465.2,3464.3,0.4626]
[1754150855338,38.30170173,3465.2,3464.8,0.4626]
[1754150855581,3.55,3465.1,3463.8,0.4626]
[1754150855778,3.55,3464.7,3462.2,7.51696865]
[1754150855935,0.55,3464.1,3463.1,0.4626]
[1754150856141,0.55,3463.7,3463.1,0.9034]
[1754150856470,0.55,3463.7,3463.2,0.4626]
[1754150856471,4.532,3463.6,3463.2,0.4626]
[1754150856677,4.532,3463.6,3463.3,0.4408]
[1754150856838,4.532,3463.6,3461.3,1.06701028]
[1754150856839,4.532,3463.6,3462.9,0.4408]
[1754150857169,0.55,3463.4,3463.0,0.4626]
[1754150857374,3.55,3463.9,3463.1,0.4408]
[1754150857561,3.55,3463.5,3463.2,0.4626]
[1754150857793,3.0,3463.3,3463.2,0.4626]
[1754150858085,0.55,3463.2,3463.1,0.4408]
[1754150858288,5.081,3463.2,3462.7,0.4408]
[1754150858508,0.55,3463.0,3461.3,1.03887715]
[1754150858653,5.081,3462.9,3462.8,0.9034]
[1754150859057,5.081,3462.9,3462.2,0.4626]
[1754150859058,0.55,3462.8,3462.2,0.4626]
[1754150859400,3.55,3462.6,3462.3,0.4408]
[1754150859600,4.532,3462.5,3460.9,0.02814847]
[1754150859906,4.532,3462.5,3461.0,0.9034]
[1754150859907,5.082,3462.5,3461.0,0.9034]
[1754150860060,5.082,3462.5,3461.1,1.58447129]
[1754150860061,3.0,3462.4,3461.1,1.58447129]
[1754150860394,4.532,3462.3,3461.2,0.9034]
[1754150860590,4.532,3462.3,3460.4,7.37216865]
[1754150860591,4.532,3462.3,3461.3,0.9034]
[1754150860795,3.0,3462.2,3460.4,7.37216865]
[1754150861095,4.532,3462.1,3461.4,0.9034]
[1754150861255,3.0,3462.0,3461.4,0.4408]
[1754150861451,0.03610212,3462.4,3461.4,0.4408]
[1754150861452,4.532,3461.9,3461.5,0.4626]
[1754150861693,4.532,3461.8,3461.6,0.4408]
[1754150861858,4.532,3461.7,3461.6,0.4408]
[1754150862461,4.532,3461.7,3461.6,0.9034]
[1754150863113,4.533,3461.7,3461.6,0.9034]
[1754150863281,4.533,3461.7,3461.6,0.4626]
[1754150863696,4.533,3461.7,3461.3,0.9034]
[1754150864010,3.0,3461.6,3459.6,7.37216865]
[1754150864219,3.0,3461.6,3459.7,3.9034]
[1754150864220,0.55,3461.5,3459.7,3.9034]
[1754150864372,3.55,3461.3,3459.8,0.9034]
[1754150864572,0.55,3461.1,3459.9,0.9034]
[1754150864800,5.39024105,3461.4,3459.4,7.37216865]
[1754150864801,4.533,3461.0,3460.0,0.9034]
[1754150864999,0.55,3461.3,3460.1,0.9034]
[1754150865198,3.0,3461.5,3460.2,1.73095687]
[1754150865416,3.0,3461.5,3459.2,0.004]
[1754150865417,3.55,3461.3,3459.2,0.004]
[1754150865615,3.55,3461.1,3460.2,0.4626]
[1754150865821,3.0,3460.9,3460.3,0.4408]
[1754150865989,3.0,3460.9,3460.4,0.4626]
[1754150866189,3.8084,3460.9,3460.2,0.4408]
[1754150866437,0.55,3460.8,3460.5,0.4626]
[1754150867126,4.534,3460.7,3460.6,0.9034]
[1754150867331,4.533,3460.7,3460.6,0.9034]
[1754150868019,4.533,3460.7,3460.6,0.4626]
[1754150868395,4.534,3460.7,3460.6,0.4626]
[1754150868699,4.534,3460.7,3460.3,0.4626]
[1754150868912,0.55,3461.2,3460.4,0.4626]
[1754150869095,3.55,3461.0,3460.4,0.4626]
[1754150869734,0.55,3460.8,3460.1,0.4626]
[1754150869895,4.57011986,3460.7,3460.1,0.4626]
[1754150870523,4.57011986,3460.7,3460.4,0.002]
[1754150871244,4.535,3460.6,3460.5,0.9034]
[1754150872344,0.4782,3462.3,3460.5,0.9034]
[1754150872493,4.535,3462.0,3460.6,0.931]
[1754150872693,0.67176355,3461.9,3460.7,0.931]
[1754150872909,1.785457,3462.1,3460.4,0.002]
[1754150872910,0.868957,3462.1,3460.5,0.4574]
[1754150873107,0.868957,3462.1,3460.4,0.002]
[1754150873108,4.534,3461.8,3460.4,0.002]
[1754150873307,0.55,3461.6,3460.4,0.4594]
[1754150873548,0.55,3461.4,3460.4,0.4594]
[1754150873760,3.55,3461.2,3460.4,0.4594]
[1754150873977,3.55,3461.2,3460.4,0.933]
[1754150874125,4.535,3461.1,3460.4,0.002]
[1754150874453,4.535,3461.0,3460.5,0.931]
[1754150874756,4.9885,3461.0,3460.4,0.002]
[1754150875051,3.55,3460.1,3459.9,0.002]
[1754150875212,8.14212716,3460.0,3459.9,0.002]
[1754150875409,7.556,3460.0,3459.9,0.002]
[1754150875844,3.0,3460.0,3459.9,0.002]
[1754150876051,4.568,3460.0,3459.9,0.933]
[1754150876635,4.568,3460.1,3459.9,0.933]
[1754150876837,3.0,3460.8,3460.0,0.931]
[1754150877043,3.0,3460.8,3460.1,0.931]
[1754150877044,4.569,3460.7,3460.1,0.931]
[1754150877246,6.948,3460.9,3460.1,0.931]
[1754150877247,6.948,3460.9,3460.2,0.931]
[1754150877567,6.948,3460.9,3460.3,0.931]
[1754150877728,4.569,3460.8,3460.1,0.83051687]
[1754150877916,4.569,3460.9,3460.4,0.931]
[1754150878112,4.569,3460.9,3460.5,0.4574]
[1754150878315,4.569,3460.9,3460.6,0.4736]
[1754150878557,4.569,3460.9,3460.7,0.931]
[1754150878836,4.569,3460.9,3459.9,0.002]
[1754150878837,4.4665,3460.8,3459.9,0.002]
[1754150879256,4.4665,3460.8,3460.0,0.4574]
[1754150879557,0.55,3460.6,3459.9,0.002]
[1754150879714,0.55,3460.4,3459.9,0.002]
[1754150880053,0.55,3460.2,3459.9,0.002]
[1754150880240,4.597,3460.1,3459.9,0.002]
[1754150880453,0.55,3460.7,3460.0,0.4574]
[1754150880771,4.597,3460.6,3460.0,0.4574]
[1754150880955,3.0,3460.5,3460.0,0.4574]
[1754150881265,4.598,3461.1,3460.0,0.4574]
[1754150881466,3.0,3460.9,3459.9,0.4594]
[1754150881630,0.51431881,3460.8,3459.9,0.4594]
[1754150881826,0.4383,3460.7,3459.9,0.002]
[1754150882053,0.55,3460.5,3459.9,0.002]
[1754150882264,3.55,3460.3,3459.9,0.002]
[1754150882443,3.0,3460.3,3459.9,0.002]
[1754150882647,4.601,3460.3,3460.0,0.4574]
[1754150882839,4.601,3460.3,3460.1,0.4574]
[1754150883050,4.601,3460.3,3460.0,0.4736]
[1754150883231,0.21278705,3461.6,3460.2,7.82956865]
[1754150883540,0.21278705,3461.6,3460.3,4.78948997]
[1754150883727,1.10045256,3462.4,3461.2,7.37216865]
[1754150883932,1.10045256,3462.4,3461.3,0.931]
[1754150884143,1.10045256,3462.4,3461.4,0.931]
[1754150884467,6.949,3463.2,3461.7,7.37216865]
[1754150884468,4.609,3462.6,3461.7,7.37216865]
[1754150884686,4.609,3462.6,3461.5,1.76131687]
[1754150884687,0.868607,3464.0,3462.2,7.37216865]
[1754150884967,2.6515,3464.6,3462.9,7.37216865]
[1754150884968,4.608,3464.1,3462.9,7.37216865]
[1754150885170,4.608,3464.1,3463.0,1.69633491]
[1754150885382,6.949,3464.7,3463.4,7.37216865]
[1754150885537,11.562,3464.7,3463.5,0.931]
[1754150885876,1.1562,3464.6,3463.5,1.76131687]
[1754150886184,5.5285,3464.5,3463.3,0.4574]
[1754150886353,0.03608128,3464.4,3463.2,0.4574]
[1754150886664,3.0,3464.4,3463.2,0.4574]
[1754150887036,3.0,3464.4,3463.3,0.4736]
[1754150887369,4.66337,3464.4,3463.3,0.4736]
[1754150887571,4.614,3464.3,3463.3,0.4736]
[1754150887772,1.66337,3464.4,3463.4,0.4574]
[1754150887984,6.949,3464.7,3462.9,0.4574]
[1754150887985,5.12728232,3464.3,3462.9,0.4574]
[1754150888191,0.55,3464.2,3462.9,0.4574]
[1754150888480,0.55,3464.0,3462.9,0.4574]
[1754150889245,3.0,3464.2,3463.0,0.4736]
[1754150889451,4.61,3464.4,3463.3,7.37216865]
[1754150889679,4.61,3464.4,3463.4,0.95911034]
[1754150889864,4.61,3464.4,3463.5,0.931]
[1754150890063,4.61,3464.4,3463.6,0.48550745]
[1754150890383,3.0,3464.6,3463.8,7.37216865]
[1754150890384,4.616,3464.6,3463.8,7.37216865]
[1754150890552,4.616,3464.6,3463.9,0.83312761]
[1754150890752,4.616,3464.6,3464.0,0.4574]
[1754150891492,0.9165,3465.5,3464.3,7.37216865]
[1754150891493,4.616,3465.0,3464.3,7.37216865]
[1754150891679,4.616,3465.0,3464.4,0.02809205]
[1754150891882,4.516,3465.0,3464.4,0.931]
[1754150892086,4.516,3465.0,3464.5,0.83031687]
[1754150892250,4.516,3465.0,3464.6,0.4574]
[1754150892450,4.516,3465.0,3463.2,3.0]
[1754150892451,3.95257607,3464.9,3463.6,0.4574]
[1754150892686,3.9165,3464.9,3463.6,0.4574]
[1754150892988,0.55,3464.8,3463.7,0.82215052]
[1754150893191,0.55,3464.6,3463.7,0.34855052]
[1754150893387,0.55,3464.4,3463.3,0.4574]
[1754150893557,5.169,3464.4,3463.3,0.4574]
[1754150894791,3.9165,3464.3,3463.1,0.83031687]
[1754150894964,1.45855,3464.2,3462.9,0.4574]
[1754150895163,0.55,3464.0,3462.9,0.4574]
[1754150895779,0.90855,3464.2,3462.5,0.4574]
[1754150895780,0.55,3463.8,3462.5,0.4574]
[1754150896089,4.616,3463.7,3462.5,7.82956865]
[1754150896276,4.616,3463.7,3462.6,0.931]
[1754150897062,0.55,3463.5,3462.3,0.4574]
[1754150897264,3.0,3464.1,3462.5,7.37216865]
[1754150897265,0.4383,3464.1,3462.5,7.37216865]
[1754150897457,3.0,3463.9,3462.6,1.79225384]
[1754150897686,3.0,3463.9,3462.7,0.4574]
[1754150897893,3.0,3463.9,3462.8,0.02812221]
[1754150898118,3.4782,3463.9,3462.7,0.4574]
[1754150898389,3.4782,3463.9,3462.6,1.30673]
[1754150898390,0.95258753,3463.8,3462.6,0.83313]
[1754150898695,0.95258753,3463.8,3462.2,0.1448]
[1754150898696,0.9165,3463.7,3462.5,7.37216865]
[1754150898898,3.0,3463.9,3462.7,0.4574]
[1754150899261,0.9165,3463.8,3462.7,0.4574]
[1754150899464,3.0,3463.9,3462.7,0.4574]
[1754150899761,3.0,3463.9,3462.8,1.25655687]
[1754150899987,0.868183,3465.7,3463.6,7.37216865]
[1754150899988,7.3823,3464.5,3463.6,7.37216865]
[1754150900297,7.3823,3464.5,3462.9,0.95912076]
[1754150900298,4.61,3464.9,3464.1,7.37216865]
[1754150900475,0.4782,3464.8,3464.1,0.73721687]
[1754150900791,0.4782,3464.8,3463.7,8.30316865]
[1754150901158,5.0483,3464.9,3463.8,0.48550201]
[1754150901354,5.0483,3464.9,3463.8,0.48550074]
[1754150901608,3.0,3464.8,3463.8,0.4574]
[1754150901770,0.4792,3465.0,3463.9,0.02809992]
[1754150901971,4.613,3464.9,3464.0,0.462]
[1754150902174,4.613,3464.9,3464.1,0.02809703]
[1754150902359,0.001,3465.0,3464.2,7.37216865]
[1754150902556,4.612,3464.9,3464.3,0.462]
[1754150903595,0.001,3465.0,3464.3,0.462]
[1754150903596,0.001,3465.0,3464.4,0.02809523]
[1754150903912,0.001,3465.0,3464.5,0.78622639]
[1754150904116,0.001,3465.0,3464.5,1.24822639]
[1754150904422,0.001,3465.0,3464.6,0.9277]
[1754150904927,0.001,3465.0,3464.6,0.462]
[1754150905287,0.001,3465.0,3464.5,0.78622639]
[1754150905491,0.001,3465.0,3463.5,3.462]
[1754150905492,0.9328,3464.9,3463.5,3.462]
[1754150905811,0.9328,3464.9,3463.7,3.0]
[1754150906026,0.001,3465.0,3463.6,3.462]
[1754150906027,0.9328,3464.8,3463.6,3.462]
[1754150906226,0.9328,3464.8,3463.6,3.9277]
[1754150906375,0.9328,3464.8,3463.7,0.85417]
[1754150906744,1.0486,3464.7,3463.6,0.462]
[1754150907599,1.0486,3464.7,3463.7,0.02810409]
[1754150907823,0.001,3465.0,3463.6,0.462]
[1754150908035,0.4986,3464.8,3463.6,7.83416865]
[1754150908202,0.4986,3464.8,3463.7,1.30578687]
[1754150908539,0.4986,3464.8,3463.7,2.23348687]
[1754150908742,0.001,3465.0,3463.8,0.462]
[1754150908903,0.001,3465.0,3464.1,7.37216865]
[1754150909615,0.001,3465.0,3464.2,0.462]
[1754150909813,0.001,3465.0,3464.3,0.84438687]
[1754150910224,0.001,3465.0,3464.4,0.462]
[1754150910740,0.001,3465.0,3464.5,0.02809061]
[1754150911041,0.001,3465.0,3464.4,0.462]
[1754150911338,0.001,3465.0,3464.0,3.0]
[1754150911543,0.001,3465.0,3464.3,0.462]
[1754150911942,0.4986,3464.9,3463.7,3.462]
[1754150912248,0.001,3465.0,3463.8,0.95580137]
[1754150912449,0.001,3465.0,3464.2,7.37216865]
[1754150912650,0.001,3465.0,3464.3,3.0280935]
[1754150912850,0.001,3465.0,3464.3,3.0]
[1754150913145,0.4352,3465.0,3463.7,0.39277]
[1754150913353,0.55,3464.8,3463.2,4.761]
[1754150913507,0.55,3464.6,3463.2,4.617]
[1754150913714,1.08108,3464.5,3463.3,1.1704]
[1754150913920,0.14828,3464.5,3463.3,1.1704]
[1754150914217,0.9328,3464.4,3463.3,1.6324]
[1754150914845,0.9328,3464.4,3463.3,0.462]
[1754150915419,0.9328,3464.4,3463.3,0.49011115]
[1754150915603,0.55,3464.6,3463.4,0.4657]
[1754150915804,0.4986,3464.5,3463.5,0.02810762]
[1754150916208,0.9328,3464.5,3463.5,0.02810762]
[1754150916938,0.4342,3464.5,3463.5,0.02810762]
[1754150917140,0.4986,3464.4,3463.4,0.02810762]
[1754150917339,0.4986,3464.4,3463.4,0.81152449]
[1754150918120,0.4342,3464.3,3463.4,0.78341687]
[1754150918328,1.08468336,3464.2,3462.9,0.002]
[1754150918727,0.58608336,3464.2,3462.9,0.002]
[1754150918912,0.55,3464.0,3462.9,0.002]
[1754150919112,0.55,3463.8,3462.9,0.002]
[1754150919552,0.9328,3463.7,3462.9,0.002]
[1754150919708,0.96888857,3463.7,3462.9,0.002]
[1754150920044,0.4986,3463.6,3462.9,0.002]
[1754150920762,0.55,3463.4,3462.9,0.002]
[1754150920915,0.55,3463.2,3462.9,0.002]
[1754150921111,3.55,3463.0,3462.9,0.002]
[1754150921723,1.4828,3463.0,3462.9,0.002]
[1754150921867,0.62456883,3463.6,3462.9,0.002]
[1754150921868,3.0,3463.2,3462.9,0.002]
[1754150922372,4.608,3463.3,3462.9,0.002]
[1754150922531,0.9328,3463.1,3462.9,0.002]
[1754150922930,0.9328,3463.0,3462.9,0.002]
[1754150923177,0.96889587,3463.0,3462.9,0.002]
[1754150923373,0.55,3463.2,3462.9,0.002]
[1754150923537,0.9328,3463.0,3462.9,0.002]
[1754150923736,0.96889587,3463.0,3462.9,0.002]
[1754150923976,0.9328,3463.0,3462.9,0.002]
[1754150924483,0.55,3463.6,3462.9,0.002]
[1754150924691,3.0,3463.4,3462.9,0.002]
[1754150924837,4.61,3463.4,3462.9,0.464]
[1754150925346,0.96889274,3463.3,3462.9,0.002]
[1754150925563,0.9328,3463.3,3462.9,0.002]
[1754150925771,0.4986,3463.2,3462.9,0.002]
[1754150925966,0.55,3463.1,3462.9,0.002]
[1754150926274,1.4828,3463.1,3462.9,0.002]
[1754150926475,0.55,3463.2,3462.9,0.002]
[1754150926663,1.4828,3463.0,3462.9,0.002]
[1754150926969,0.9842,3463.2,3462.9,0.002]
[1754150927173,0.9328,3463.0,3462.9,0.002]
[1754150927581,4.614,3463.3,3462.9,0.002]
[1754150927799,0.55,3463.2,3462.9,0.002]
[1754150927972,1.4828,3463.0,3462.9,0.002]
[1754150928292,1.51889587,3463.0,3462.9,0.002]
[1754150929000,34.51889587,3463.0,3462.9,0.002]
[1754150929167,34.4828,3463.0,3462.9,0.002]
[1754150930712,34.69998183,3463.0,3462.9,0.002]
[1754150931012,37.5682289,3463.0,3462.9,0.002]
[1754150931510,42.1842289,3463.0,3462.9,0.002]
[1754150932359,42.1842289,3463.0,3462.5,0.002]
[1754150932360,3.55,3462.9,3462.5,0.002]
[1754150932590,40.92216865,3462.6,3462.5,0.002]
[1754150932789,45.53916865,3462.6,3462.5,0.002]
[1754150932976,47.15978445,3462.6,3462.5,0.002]
[1754150933184,35.1706158,3462.6,3462.5,0.002]
[1754150933378,39.7876158,3462.6,3462.5,0.002]
[1754150933576,47.15978445,3462.6,3462.5,0.002]
[1754150934495,39.7926158,3462.6,3462.5,0.002]
[1754150935768,47.16478445,3462.6,3462.5,0.002]
[1754150936079,17.16478445,3462.6,3462.5,0.002]
[1754150936467,47.16478445,3462.6,3462.5,0.002]
[1754150937661,47.93914316,3462.6,3462.5,0.002]
[1754150937878,47.93914316,3462.6,3460.3,0.002]
[1754150937879,3.55,3462.5,3460.3,0.002]
[1754150938073,0.55,3461.7,3460.3,0.002]
[1754150938300,3.55,3461.3,3460.3,0.4564]
[1754150938601,3.55,3461.1,3460.3,0.002]
[1754150938781,3.55,3460.9,3460.3,0.002]
[1754150938983,0.55,3460.7,3460.3,0.002]
[1754150939299,3.55,3460.5,3460.3,0.002]
[1754150939505,3.58612299,3460.4,3460.3,0.002]
[1754150939701,4.51812299,3460.4,3460.3,0.002]
[1754150939889,35.45367637,3460.4,3460.3,0.002]
[1754150940091,35.41755338,3460.4,3460.3,0.002]
[1754150940302,40.03355338,3460.4,3460.3,0.002]
[1754150940775,9.10155338,3460.4,3460.3,0.002]
[1754150940988,10.03355338,3460.4,3460.3,0.002]
[1754150941169,3.55,3460.4,3460.3,0.002]
[1754150941369,8.165,3460.4,3460.3,0.002]